Cogmind - Beta 14 @@@ ROGUE MODE // 2024.10.01 @ 23:11:45 // Winter2019/RPGLIKE Player: Ivanna Dostya Result: Destroyed by G-47 Trooper with Particle Gun Performance ------------- Evolutions (3) 1500 Regions Visited (7) 1400 Robots Destroyed (40) 200 Value Destroyed (931) 931 Prototype IDs (25) 500 Alien Tech Used (0) 0 Bonus (802) 802 TOTAL SCORE: 5333 Bonus ------- High Alert Combat Kills 2 Entered DSFs 500 Aligned with FarCom 300 Cogmind --------- Core Integrity 0/700 Matter 151/300 Energy 363/485 System Corruption 9% Temperature Cool (9) Movement Walking (125) Location -7/DSF Parts ------- > --- POWER (2) -------- Deuterium Engine Light Nuclear Core > --- PROPULSION (4) --- Aluminum Leg Titanium Leg Titanium Leg Flexi-carbon Leg > --- UTILITY (4) ------ Medium Battery Visual Processing Unit Light Armor Plating > --- WEAPON (3) ------- Latent Energy Streamer Plasma Cannon Plasma Cannon > --- INVENTORY (0) ---- (None) Peak State ------------ > --- POWER ------------ Deuterium Engine Light Nuclear Core > --- PROPULSION ------- Aluminum Leg Titanium Leg Titanium Leg Flexi-carbon Leg > --- UTILITY ---------- Medium Battery Visual Processing Unit Core Analyzer Light Armor Plating > --- WEAPON ----------- Latent Energy Streamer Plasma Cannon Plasma Cannon > --- INVENTORY -------- (None) [Rating: 44] Favorites ----------- Power Light Nuclear Core Engine Deuterium Engine Power Core Light Nuclear Core Propulsion Aluminum Leg Leg Aluminum Leg Utility Improved Heat Sink Device Improved Heat Sink Storage Medium Battery Processor Visual Processing Unit Protection Light Armor Plating Weapon Beam Cannon Energy Cannon Beam Cannon Ballistic Gun Assault Rifle Launcher Grenade Launcher Build | -11 -10 -10 -10 -9 -8 -7 -7 ------- Run | Yrd Mat Min Exi Min Mat Fac DSF Slots Evolved 9 | 3 . . 1 . 2 3 . Power 1 | . . . . . 1 . . Propulsion 3 | 1 . . . . . 2 . Utility 3 | 1 . . 1 . . 1 . Weapon 2 | 1 . . . . 1 . . Parts Attached 41 | 4 14 1 2 2 12 5 1 Power 8 | . 2 . . 1 5 . . Engine 5 | . 1 . . . 4 . . Core 3 | . 1 . . 1 1 . . Reactor . | . . . . . . . . Propulsion 10 | 1 3 . . 1 . 4 1 Treads . | . . . . . . . . Leg 10 | 1 3 . . 1 . 4 1 Wheel . | . . . . . . . . Hover . | . . . . . . . . Flight . | . . . . . . . . Utility 13 | 2 3 1 1 . 5 1 . Device 7 | 2 3 1 . . 1 . . Storage 2 | . . . 1 . 1 . . Processor 2 | . . . . . 1 1 . Hackware . | . . . . . . . . Protection 2 | . . . . . 2 . . Artifact . | . . . . . . . . Weapon 10 | 1 6 . 1 . 2 . . Energy Gun . | . . . . . . . . Energy Cannon 4 | . 1 . 1 . 2 . . Ballistic Gun 2 | 1 1 . . . . . . Ballistic Cannon . | . . . . . . . . Launcher 4 | . 4 . . . . . . Special Weapon . | . . . . . . . . Impact Weapon . | . . . . . . . . Slashing Weapon . | . . . . . . . . Piercing Weapon . | . . . . . . . . Special Melee Weapon . | . . . . . . . . Unidentified Prototypes . | . . . . . . . . Corrupted Parts 2 | . . . . 2 . . . System Corruption 9 | . . . . 9 . . . Parts Lost . | . . . . . . . . Power . | . . . . . . . . Propulsion . | . . . . . . . . Utility . | . . . . . . . . Weapon . | . . . . . . . . Highest Loss Streak . | . . . . . . . . To Critical Strikes . | . . . . . . . . Average Slot Usage (%) 98 | . 96 100 100 99 98 97 93 Engine 5 | . 9 . . . 10 7 7 Core 9 | . 4 14 13 11 6 7 7 Leg 25 | . 26 28 27 25 21 28 29 Device 19 | . 27 28 27 25 9 . . Storage 4 | . . . 2 12 10 7 7 Processor 2 | . . . . . 3 10 9 Protection 2 | . . . . . 7 7 7 Energy Cannon 17 | . 2 14 21 25 27 24 23 Ballistic Gun 4 | . 17 . . . . . . Launcher 5 | . 7 14 6 . . . . Peak Build Rating 44 | 9 11 11 21 25 36 44 44 Average Rating 19 | 5 9 10 16 23 30 39 40 On Entrance 19 | 3 9 11 11 21 25 34 44 Naked Turns . | . . . . . . . . Heaviest Build 44 | 10 13 13 22 22 44 43 43 Greatest Support 69 | 20 20 20 20 35 35 69 69 Greatest Overweight (x) 1 | . 1 . 1 1 1 1 . Average Overweight (x) . | . . . . . . . . Largest Inventory Capacity . | . . . . . . . . Average Capacity . | . . . . . . . . Most Carried . | . . . . . . . . Average Carried . | . . . . . . . . Final Capacity . | . . . . . . . . Final Carried . | . . . . . . . . Class Distribution -------------------- 41% | Scavenger-Mutant 27% | Scavenger-Skirmisher 18% | Mutant 7% | Skirmisher 3% | Gunner Dominant Class ---------------- Mutant | -10/Materials Scavenger-Mutant | -10/Mines Scavenger-Mutant | -10/Exiles Scavenger-Skirmisher | -9/Mines Scavenger-Skirmisher | -8/Materials Scavenger-Skirmisher | -7/Factory Scavenger-Skirmisher | -7/DSF Resources | -11 -10 -10 -10 -9 -8 -7 -7 ----------- Run | Yrd Mat Min Exi Min Mat Fac DSF Matter Collected 863 | 268 274 106 . 123 92 . . Remotely 430 | 52 274 104 . . . . . Salvage Created 1323 | 103 432 67 . 268 267 . 186 Parts 74 | 6 27 16 . 2 19 . 4 Haulers Intercepted 2 | . 1 . . . 1 . . Recyclers Shooed 2 | . 1 1 . . . . . Parts Field Recycled . | . . . . . . . . Retrieved Matter . | . . . . . . . . Parts Self-Destructed . | . . . . . . . . Prevented . | . . . . . . . . Kills | -11 -10 -10 -10 -9 -8 -7 -7 ------- Run | Yrd Mat Min Exi Min Mat Fac DSF Combat Hostiles Destroyed 35 | . 11 8 . 11 4 . 1 Guns 8 | . 8 . . . . . . Cannons 9 | . 1 . . 7 1 . . AOE 18 | . 2 8 . 4 3 . 1 Classes Destroyed 10 | 2 5 . . 1 2 . . Worker 5 | . 1 3 . . 1 . . Tunneler 1 | 1 . . . . . . . Hauler 2 | . 1 . . . 1 . . Recycler 4 | 1 2 . . 1 . . . Operator 1 | . . . . . 1 . . Watcher 3 | . 2 . . . 1 . . Swarmer 9 | . 3 6 . . . . . Grunt 12 | . 8 2 . . 1 . 1 Sentry 3 | . . . . . 3 . . Assembled 11 | . . . . 11 . . . Best Kill Streak 9 | 2 5 3 . 9 2 . 1 Combat Bots Only 9 | . 5 3 . 9 2 . 1 Max Kills in Single Turn 4 | 1 4 3 . 1 1 . 1 Gunslinging . | . . . . . . . . Exploded 2 | . 1 2 . 1 1 . 1 Melee . | . . . . . . . . Uniques/NPCs Destroyed . | . . . . . . . . Combat | -11 -10 -10 -10 -9 -8 -7 -7 -------- Run | Yrd Mat Min Exi Min Mat Fac DSF Hostile Shots Fired 133 | . 43 9 . 57 12 . 12 Missed 49 | . 20 2 . 18 6 . 3 Damage Taken 1547 | . 364 78 . 593 85 . 427 Core 1249 | . 319 61 . 486 60 . 323 Absorbed by Shields . | . . . . . . . . Redirected to Core 897 | . 142 52 . 370 60 . 273 Regen/Repaired (Parts) 62 | . . . . . . 62 . Core Remaining (%) 54 | 100 . . . 19 45 . . Volleys Fired 133 | 7 46 19 . 33 20 1 7 Largest 2 | 2 2 1 . 1 2 2 1 Hottest 160 | 40 60 60 . 60 160 160 60 Shots Fired 172 | 14 68 19 . 33 29 2 7 Gun 65 | 14 51 . . . . . . Cannon 86 | . 5 10 . 33 29 2 7 Launcher 21 | . 12 9 . . . . . Special . | . . . . . . . . Kinetic 65 | 14 51 . . . . . . Thermal 63 | . 5 10 . 27 19 2 . Explosive 21 | . 12 9 . . . . . Electromagnetic 23 | . . . . 6 10 . 7 Robot Hit Streak 17 | 2 14 5 . 10 17 . 6 Robot Miss Streak 4 | 3 4 4 . 2 2 . 1 Penetration Max . | . . . . . . . . Secondary Targets . | . . . . . . . . Shots Hit Robots 98 | 5 41 7 . 23 16 . 6 Core Hits 116 | 3 29 17 . 35 14 . 18 Critical Kills . | . . . . . . . . Critical Parts Destroyed . | . . . . . . . . Critical Strikes . | . . . . . . . . Melee Attacks . | . . . . . . . . Impact . | . . . . . . . . Slashing . | . . . . . . . . Piercing . | . . . . . . . . Sneak Attacks . | . . . . . . . . Combat Hostiles . | . . . . . . . . Follow-up Attacks . | . . . . . . . . Damage Inflicted 3728 | 61 1131 501 . 710 838 . 487 Guns 417 | 61 356 . . . . . . Cannons 850 | . 70 70 . 396 282 . 32 Explosions 2445 | . 702 431 . 301 556 . 455 Melee . | . . . . . . . . Ramming 16 | . 3 . . 13 . . . Kinetic 417 | 61 356 . . . . . . Thermal 795 | . 70 70 . 383 252 . 20 Explosive 1169 | . 702 431 . . 36 . . Electromagnetic 1331 | . . . . 314 550 . 467 Impact . | . . . . . . . . Slashing . | . . . . . . . . Piercing . | . . . . . . . . Highest Corruption 18 | . . . . 15 18 . 9 Average Corruption 13 | . . . . 12 14 . 5 Corruption Purged . | . . . . . . . . Corruption Blocked . | . . . . . . . . Effects 34 | . . . . 8 25 . 1 Message Errors 8 | . . . . 2 6 . . Matter Fused 8 | . . . . . 8 . . Heat Flow Errors 5 | . . . . 3 2 . . Energy Discharges 3 | . . . . . 2 . 1 Parts Rejected 2 | . . . . 1 1 . . Data Loss (minor) 4 | . . . . 1 3 . . Data Loss (major) 1 | . . . . 1 . . . Misfires 2 | . . . . . 2 . . Alerts 1 | . . . . . 1 . . Overload Shots . | . . . . . . . . Overflow Damage 96 | . 47 5 . 31 13 . . Projectiles 28 | . . . . 21 7 . . Explosions 58 | . 47 5 . . 6 . . Melee 10 | . . . . 10 . . . Knockbacks . | . . . . . . . . Impact . | . . . . . . . . Kinetic . | . . . . . . . . Secondary . | . . . . . . . . Self-Inflicted Damage 132 | . 107 5 . 20 . . . Shots 5 | . 3 1 . 1 . . . Rammed . | . . . . . . . . Targets Rammed 3 | . 2 . . 1 . . . Kicked 3 | . 2 . . 1 . . . Crushed . | . . . . . . . . Highest Temperature 396 | . 78 . . 195 396 132 8 Average Temperature 109 | . 22 . . 86 140 61 4 Received Heat Transfer 347 | . 126 36 . 140 27 . 18 Siege Activations . | . . . . . . . . Robots Corrupted 1 | . . . . . 1 . . Combat Hostiles . | . . . . . . . . Parts Fried 5 | . . . . . 5 . . Impact Corruptions 1 | . . . . 1 . . . Robots Melted . | . . . . . . . . Combat Hostiles . | . . . . . . . . Parts Melted 1 | . . . . . 1 . . Heat Transferred 1671 | . 148 148 . 814 511 . 50 Parts Sabotaged . | . . . . . . . . Parts Stolen . | . . . . . . . . Parts Stripped . | . . . . . . . . Power Chain Reactions 1 | . . . . . . . 1 Latent Energy Used 1167 | . . . . 196 737 . 234 LE Corruption 33 | . . . . 6 18 . 9 Alert | -11 -10 -10 -10 -9 -8 -7 -7 ------- Run | Yrd Mat Min Exi Min Mat Fac DSF Peak Influence 527 | 10 356 409 . 5 527 153 163 Initial 149 | . 6 133 . . 1 149 107 Average 190 | 4 208 200 . 1 299 150 123 Maximum Alert Level 2 | . 1 2 . . 2 . . Low Security (%) 53 | 100 36 39 . 100 31 100 100 Level 1 39 | . 63 57 . . 42 . . Level 2 6 | . . 2 . . 26 . . Level 3 . | . . . . . . . . Level 4 . | . . . . . . . . Level 5 . | . . . . . . . . High Security . | . . . . . . . . Max Security . | . . . . . . . . Squads Dispatched 5 | . 2 . . . . 1 2 Investigation 2 | . 1 . . . . 1 . Extermination . | . . . . . . . . Reinforcement 3 | . 1 . . . . . 2 Assault . | . . . . . . . . Garrison . | . . . . . . . . Intercept . | . . . . . . . . Searches Triggered . | . . . . . . . . Construction Impeded . | . . . . . . . . Haulers Reinforced . | . . . . . . . . Active Scanning Responses . | . . . . . . . . Cargo Convoy Interrupts . | . . . . . . . . Stealth | -11 -10 -10 -10 -9 -8 -7 -7 --------- Run | Yrd Mat Min Exi Min Mat Fac DSF Distress Signals 4 | . 4 . . . . . . Communications Jammed . | . . . . . . . . Distress Signals . | . . . . . . . . Times Spotted 65 | . 19 6 . 24 11 . 5 Peak Tracking Total 17 | . 7 3 . 17 3 . 6 Tactical Retreats 7 | . 2 . . 3 1 . 1 Traps | -11 -10 -10 -10 -9 -8 -7 -7 ------- Run | Yrd Mat Min Exi Min Mat Fac DSF Traps Triggered 3 | . 3 . . . . . . Indirectly . | . . . . . . . . Trap Hack Attempts . | . . . . . . . . Triggered . | . . . . . . . . Disarmed . | . . . . . . . . Reprogrammed . | . . . . . . . . Reused . | . . . . . . . . Traps Extracted . | . . . . . . . . Installed . | . . . . . . . . Triggered . | . . . . . . . . Machines | -11 -10 -10 -10 -9 -8 -7 -7 ---------- Run | Yrd Mat Min Exi Min Mat Fac DSF Machines Disabled 12 | . . 2 . . 10 . . Max in Single Turn 3 | . . 1 . . 3 . . Machines Repaired . | . . . . . . . . Machines Dismantled . | . . . . . . . . Machines Sabotaged . | . . . . . . . . Overloaded Fab Kills . | . . . . . . . . Hacking | -11 -10 -10 -10 -9 -8 -7 -7 --------- Run | Yrd Mat Min Exi Min Mat Fac DSF Machines Accessed 10 | . 4 . 1 . 3 2 . Terminals 6 | . 3 . . . 2 1 . Fabricators . | . . . . . . . . Repair Stations 2 | . . . . . 1 1 . Recycling Units 1 | . 1 . . . . . . Scanalyzers . | . . . . . . . . Garrison Access . | . . . . . . . . Total Hacks 30 | . 16 . 1 . 7 6 . Successful 17 | . 9 . 1 . 3 4 . Failed 13 | . 7 . . . 4 2 . Catastrophic 2 | . 2 . . . . . . Database Lockouts . | . . . . . . . . Manual 14 | . 7 . 2 . 5 . . Terminals 19 | . 13 . . . 5 1 . Fabricators . | . . . . . . . . Repair Stations 7 | . . . . . 2 5 . Recycling Units 3 | . 3 . . . . . . Scanalyzers . | . . . . . . . . Garrison Access . | . . . . . . . . Terminal Hacks 9 | . 7 . 1 . . 1 . Part Schematic 2 | . 2 . . . . . . Prototype ID Bank 1 | . 1 . . . . . . Open DSF 1 | . . . . . . 1 . Branch Access Points 1 | . 1 . . . . . . Transport Status 1 | . 1 . . . . . . Hauler Manifests 1 | . 1 . . . . . . Zone Layout 1 | . 1 . . . . . . Derelict Proto ID Bank 1 | . . . 1 . . . . Fabricator Hacks . | . . . . . . . . Repair Station Hacks 5 | . . . . . 2 3 . Scan Component 3 | . . . . . 1 2 . Repair 2 | . . . . . 1 1 . Recycling Unit Hacks 2 | . 2 . . . . . . Report Inventory 1 | . 1 . . . . . . Retrieve Components 1 | . 1 . . . . . . Scanalyzer . | . . . . . . . . Garrison Access Hacks . | . . . . . . . . Unauthorized Hacks 1 | . . . . . 1 . . Terminals 1 | . . . . . 1 . . Botnet 1 | . . . . . 1 . . Fabricators . | . . . . . . . . Repair Stations . | . . . . . . . . Recycling Units . | . . . . . . . . Scanalyzers . | . . . . . . . . Garrison Access . | . . . . . . . . Data Cores Recovered . | . . . . . . . . Used . | . . . . . . . . Hacking Detections 7 | . 4 . . . 2 1 . Full Trace Events 2 | . 1 . . . . 1 . Feedback Events . | . . . . . . . . Feedback Blocked . | . . . . . . . . Robot Schematics Acquired . | . . . . . . . . Robots Built . | . . . . . . . . Authchips . | . . . . . . . . Time . | . . . . . . . . Total Robot Build Rating . | . . . . . . . . Part Schematics Acquired 2 | . 2 . . . . . . Parts Built . | . . . . . . . . Authchips . | . . . . . . . . Time . | . . . . . . . . Total Part Build Rating . | . . . . . . . . Parts Repaired 1 | . . . . . . 1 . Time 108 | . . . . . 38 70 . Parts Recycled . | . . . . . . . . Recycled Matter . | . . . . . . . . Retrieved Matter . | . . . . . . . . Retrieved Components 10 | . 10 . . . . . . Parts Scanalyzed . | . . . . . . . . Part Schematics Acquired . | . . . . . . . . Parts Damaged . | . . . . . . . . Bothacking | -11 -10 -10 -10 -9 -8 -7 -7 ------------ Run | Yrd Mat Min Exi Min Mat Fac DSF Used RIF Installer . | . . . . . . . . Robots Hacked . | . . . . . . . . Non-combat . | . . . . . . . . Combat . | . . . . . . . . Robot Hacks Applied . | . . . . . . . . Relay Couplers Released . | . . . . . . . . Fabnet Peak Effective % . | . . . . . . . . Robots Rewired . | . . . . . . . . Allies Hacked . | . . . . . . . . Hacks Repelled . | . . . . . . . . Allies | -11 -10 -10 -10 -9 -8 -7 -7 -------- Run | Yrd Mat Min Exi Min Mat Fac DSF Total Allies . | . . . . . . . . Largest Group . | . . . . . . . . Highest-Rated Group . | . . . . . . . . Highest-Rated Ally . | . . . . . . . . Total Orders . | . . . . . . . . Ally Attacks . | . . . . . . . . Total Damage . | . . . . . . . . Kills . | . . . . . . . . Allies Corrupted . | . . . . . . . . Allies Melted . | . . . . . . . . Intel | -11 -10 -10 -10 -9 -8 -7 -7 ------- Run | Yrd Mat Min Exi Min Mat Fac DSF Robot Analysis Total . | . . . . . . . . Derelict Logs Recovered 1 | . . . . 1 . . . Drone Launches . | . . . . . . . . Drone Recoveries . | . . . . . . . . Exploration | -11 -10 -10 -10 -9 -8 -7 -7 ------------- Run | Yrd Mat Min Exi Min Mat Fac DSF Turns Passed 2762 | 76 633 554 295 270 582 285 67 Spaces Moved 1742 | 43 376 420 227 157 314 164 41 Core 2 | . 2 . . . . . . Treads . | . . . . . . . . Legs 1740 | 43 374 420 227 157 314 164 41 Wheels . | . . . . . . . . Hover . | . . . . . . . . Flight . | . . . . . . . . Fastest Speed 50 | 120 50 120 120 120 120 125 123 Average Speed 128 | 120 123 120 129 123 150 130 124 Slowest Speed 195 | 120 190 120 190 190 190 195 125 Overloaded Moves . | . . . . . . . . Propulsion Burnouts . | . . . . . . . . Robots Hopped . | . . . . . . . . Cave-ins Triggered . | . . . . . . . . Exploration Rate (%) 38 | 4 53 77 59 28 29 4 53 Regions Visited 7 Branch Regions 3 Pre-discovered Areas 2 | . . 1 . 1 . . . Known Exits Taken 2 | . 1 . . . . 1 . Unknown Exits Taken 5 | 1 . 1 1 1 1 . . Scrap Searched 3 | . . 1 . 2 . . . Spaces Dug . | . . . . . . . . Terrain Destroyed 268 | . 59 54 . . 154 . 1 Melee . | . . . . . . . . Projectile 5 | . . . . . 5 . . AOE 263 | . 59 54 . . 149 . 1 Terrain Rammed . | . . . . . . . . Walls Destroyed . | . . . . . . . . Machines Disabled . | . . . . . . . . Actions | -11 -10 -10 -10 -9 -8 -7 -7 --------- Run | Yrd Mat Min Exi Min Mat Fac DSF Total 2085 | 53 476 451 229 200 395 232 49 Wait 127 | . 23 6 . 5 31 62 . Move 1735 | 42 375 419 226 156 313 163 41 Hop . | . . . . . . . . Pick Up . | . . . . . . . . Fast Attach 34 | 4 12 1 2 1 9 4 1 Attach . | . . . . . . . . Detach . | . . . . . . . . Swap 7 | . 2 . . 1 3 1 . Drop 18 | . 6 1 1 1 8 1 . Fire 133 | 7 46 19 . 33 20 1 7 Melee . | . . . . . . . . Ram . | . . . . . . . . Kick 3 | . 2 . . 1 . . . Crush . | . . . . . . . . Escape Stasis . | . . . . . . . . Rewire . | . . . . . . . . Trap . | . . . . . . . . Miscellaneous 28 | . 10 5 . 2 11 . . Route ------- -11/Scrapyard -10/Materials (discovered 4 exits: [*Mat x2] / *Min x2) -10/Mines (discovered 3 exits: [*Mat x2] / *Exi) -10/Exiles -9/Mines -8/Materials (discovered 2 exits: *Fac / [*Sto]) -7/Factory -7/DSF History --------- Turn | Location | Event 1 | -11/Scrapyard | Discovered new exit (range 0) 4 | -11/Scrapyard | Upgraded with Propulsion slot (x1) 4 | -11/Scrapyard | Upgraded with Utility slot (x1) 4 | -11/Scrapyard | Upgraded with Weapon slot (x1) 77 | -11/Scrapyard | Entered Materials 313 | -10/Materials | Build established: Mutant 324 | -10/Materials | Discovered new exit (range 16) 393 | -10/Materials | Identified exit to Mines 690 | -10/Materials | Reached level 2 690 | -10/Materials | Discovered new exit (range 17) 710 | -10/Materials | Entered Mines 743 | -10/Mines | A weapon hastily lodged in a ceiling crevice suddenly fell to the ground 817 | -10/Mines | Build established: Scavenger-Mutant 827 | -10/Mines | Discovered new exit (range 8) 1087 | -10/Mines | Learned location of Storage (-8) 1090 | -10/Mines | Reached level 3 1097 | -10/Mines | Discovered new exit (range 9) 1259 | -10/Mines | Deemed a non-threat by the Exiles lab entrance 1259 | -10/Mines | Discovered new exit (range 5) 1264 | -10/Mines | Entered Exiles 1294 | -10/Exiles | Met 8R-AWN 1315 | -10/Exiles | Met EX-HEX 1347 | -10/Exiles | Met EX-BIN 1364 | -10/Exiles | Aligned with FarCom system 1365 | -10/Exiles | Given EX-Vault access code 1394 | -10/Exiles | Opened EX-Vault 1399 | -10/Exiles | Found Latent Energy Streamer 1425 | -10/Exiles | Warned to stay clear of 0b10 Research branches 1460 | -10/Exiles | Met EX-DEC 1503 | -10/Exiles | Upgraded with Utility slot (x1) 1537 | -10/Exiles | Discovered new exit (range 14) 1559 | -10/Exiles | Left Exiles lab with Latent Energy Streamer 1559 | -10/Exiles | Entered Mines 1560 | -9/Mines | Assembled infested the area 1565 | -9/Mines | Assisted by a Guerilla fighting off Assembled 1588 | -9/Mines | Core integrity fell below 50% 1624 | -9/Mines | System corruption reached 10% 1644 | -9/Mines | Destroyed 9 combat bots 1666 | -9/Mines | Core integrity fell below 20% 1796 | -9/Mines | Discovered new exit (range 9) 1829 | -9/Mines | Entered Materials 1829 | -8/Materials | Discovered new exit (range 8) 1830 | -8/Materials | Core integrity fell below 50% 1830 | -8/Materials | Core integrity fell below 20% 1831 | -8/Materials | Reached level 4 1964 | -8/Materials | System corruption reached 10% 1972 | -8/Materials | Reached level 5 1993 | -8/Materials | Upgraded with Power slot (x1) 2094 | -8/Materials | Upgraded with Weapon slot (x1) 2293 | -8/Materials | Discovered new exit (range 11) 2411 | -8/Materials | Entered Factory 2412 | -7/Factory | Core integrity fell below 50% 2413 | -7/Factory | Reached level 6 2432 | -7/Factory | Upgraded with Propulsion slot (x2) 2479 | -7/Factory | Build established: Scavenger-Skirmisher 2534 | -7/Factory | Identified exit to DSF 2582 | -7/Factory | Upgraded with Utility slot (x1) 2662 | -7/Factory | Repaired Broken Flexi-carbon Leg? 2696 | -7/Factory | Entered DSF 2698 | -7/DSF | Reached level 7 2719 | -7/DSF | Additional patrols routed to DSF 2721 | -7/DSF | Core integrity fell below 20% 2763 | -7/DSF | Destroyed by G-47 Trooper with Particle Gun Last Messages --------------- 02698_ Reached level 7. 02702_ ALERT: Suspicious intruders detected, dispatching Specialist reinforcements to area. 02714_ A-02 Transporter destroyed. 02716_ H-61 Shepherd calls for reinforcements. 02716_ ALERT: Hostile activity reported, dispatching reinforcements to area. 02716_ Core Analyzer blasted off. 02719_ Hostiles detected in DSF, routing additional patrols. 02720_ Knocked back. 02720_ Chain reaction triggered in Corrupted Ion Engine. 02729_ Upgraded: Energy Generation (+5) 02748_ System corrupted: Energy discharge (-145). 02757_ Titanium Leg blasted off. 02758_ G-47 Trooper destroyed. 02759_ Knocked back. 02762_ Acquired Titanium Leg. Map ----- +----------------------------------------------------+ | | | | | | | | | | | | | | | | | | | | | | | | | | | | | | | | | | | ?????????????????????????????????????????????????? | | ?????????????????????????????????????????????????? | | ?????????????????????????????????????????????????? | | ??????????????????????????????????????#??????????? | | ??????????????????????????????????????""?????????? | | ??????????????????????????????????????"#?????????? | | ????????????????????#########???????##"####??????? | | ????????????????????#!! %!!#########"""""#??????? | | ????????????????????#!! @!!#[[[#[[##"""""#??????? | | ????????????????????# % % ""##"????? | | ????????????????????# """""#???? | | ????????????????????### ^ ### #[[## ""##?????? | | ??????????????????????# ;?# #[[###Y ###??????? | | ????????????????????? !?########## ##???????? | | ????????????????????# !????????# [#???????? | | ????????????????????# !????????# [#???????? | | ????????????????????### #????????### ##???????? | | ??????????????????????! !????????#[[ #???????? | | ??????????????????????!g !????????#[[ #???????? | | ?????????????????????!! !????????#[[ #???????? | | ?????????????????????## #?#???###### ###??????? | | ?????????????????????? =x??#!!?# ?# #??????? | | ??????????????????????% ! ##!!!# "# #??????? | | ????????????????????? = H x % !!#??????? | | ????????????????????? !!#??????? | | ????????????????????? !!#??????? | | ??????????????????????% ##!!!#[[[## % #??????? | | ????????????????????????????#!!?#[[[?# #??????? | | ????????????????????????????#???###### ###??????? | | ???????????????????????????????????#!! !#???????? | | ???????????????????????????????????#!! !#???????? | | ???????????????????????????????????#!! !#???????? | | ???????????????????????????????????### ##???????? | +----------------------------------------------------+ Best States ------------- Heat Dissipation 39 Energy Generation 43 Energy Capacity 590 Matter Stores 300 Matter Capacity 450 Sight Range 18 Terrain Scan Range 16 Terrain Scan Density 110 Armor Coverage 150 Evasion (%) 55 Core Analysis 6 Item Schematics ----------------- Targeting Computer | -10/Materials | Hacked Lgt. Armor Plating | -10/Materials | Hacked Robot Schematics ------------------ None Fabricated ------------ Nothing Alien Tech Used ----------------- None Achievements -------------- None Challenges ------------ None RPGLIKE | -11 -10 -10 -10 -9 -8 -7 -7 --------- Run | Yrd Mat Min Exi Min Mat Fac DSF Levels Raised 6 | . 1 1 . . 2 1 1 XP Earned 12786 | 3000 1565 1601 350 500 2870 1500 1400 XP Spent 11010 | 1500 1500 . 800 1860 1300 3000 1050 Upgrades 20 | 3 3 . 1 7 2 3 1 Power Slot 1 | . . . . . 1 . . Propulsion Slot 3 | 1 . . . . . 2 . Utility Slot 3 | 1 . . 1 . . 1 . Weapon Slot 2 | 1 . . . . 1 . . Core Integrity 2 | . . . . 2 . . . Energy Generation 4 | . . . . 3 . . 1 Mass Support 1 | . . . . 1 . . . Terrain Scan Density 1 | . . . . 1 . . . Ranged Accuracy 3 | . 3 . . . . . . Protomatter Created 247 | . 112 33 . 12 90 . . Integrity Restored 562 | . 211 99 . 12 240 . . Core 543 | . 192 99 . 12 240 . . Parts 19 | . 19 . . . . . . Protomatter Decayed 70 | . 4 . . 66 . . . Game ------ Seed InsulationDamperFalx Manual? 0 Play Time 00:35:13 Cumulative 26.0 hours Start 2024.10.01 @ 22:37:06 End 2024.10.01 @ 23:11:45 Sessions 2 Manual Loads 0 Difficulty Rogue Special Mode Winter2019/RPGLIKE Game No. 28 Rogue 26 Adventurer 2 Explorer 0 Win Type - Total 0 Types 0/0/0/0/0/0/0/0/0 Lore% 13 Gallery% 31 Achievement% 28 Wizard Run 0 Options --------- Layout 2 ASCII 0 Keyboard 0 Movement Numpad Keybinds 1 Fullscreen 2 Font 24/Smallcaps Map View 50x44 Zoom Use 0% Tactical HUD 1 Map Filters NONE Filters NONE Steam 1 RUN: 9c620235-db51-49ca-8eda-b1f2ce2f65be